fUSD/lending_fUSD_20250119
["ID","MTS","AMOUNT","RATE_DAILY","PERIOD"]
[349519145,1737272778158,-500.0,0.00025,30]
[349519146,1737272778183,-500.0,0.00025,30]
[349519147,1737272778209,-500.0,0.00025,30]
[349519148,1737272778233,-500.0,0.00025,30]
[349519149,1737272778259,-500.0,0.00025,30]
[349519150,1737272778283,-500.0,0.00025,30]
[349519151,1737272778307,-500.0,0.00025,30]
[349519152,1737272778332,-500.0,0.00025,30]
[349519153,1737272778364,-1000.0,0.00025479,30]
[349519154,1737272778397,-500.0,0.00025577,120]
[349519155,1737272778422,-1000.0,0.00025753,30]
[349519156,1737272778449,-2000.0,0.00026,120]
[349519157,1737272778475,-408.57388812,0.00026,60]
[349519158,1737272778500,-1000.0,0.00026027,30]
[349519159,1737272778526,-827.69562504,0.00026137,120]
[349519160,1737272778552,-1000.0,0.00026301,30]
[349519161,1737272778580,-1000.0,0.00026575,30]
[349519162,1737272778606,-500.0,0.0002661,120]
[349519163,1737272778633,-1000.0,0.00026849,30]
[349519164,1737272778659,-20461.20227441,0.00027,30]
[349519165,1737272778690,-1040.65,0.00027,31]
[349519166,1737272778719,-1040.65,0.00027,31]
[349519167,1737272778747,-1040.65,0.00027,31]
[349519168,1737272778776,-1040.65,0.00027,31]
[349519169,1737272778806,-1040.65,0.00027,31]
[349519170,1737272778835,-1040.65,0.00027,31]
[349519171,1737272778864,-1040.65,0.00027,31]
[349519172,1737272778895,-1040.65,0.00027,31]
[349519173,1737272778927,-1040.65,0.00027,31]
[349519174,1737272778957,-1040.65,0.00027,31]
[349519175,1737272778988,-1040.65,0.00027,31]
[349519176,1737272779018,-1040.65,0.00027,31]
[349519177,1737272779046,-1040.65,0.00027,31]
[349519178,1737272779075,-1040.65,0.00027,31]
[349519179,1737272779207,-1040.65,0.00027,31]
[349519180,1737272779239,-1040.65,0.00027,31]
[349519181,1737272779271,-1040.65,0.00027,31]
[349519182,1737272779303,-1040.65,0.00027,31]
[349519183,1737272779336,-1040.65,0.00027,31]
[349519184,1737272779367,-1040.65,0.00027,31]
[349519185,1737272779399,-1040.65,0.00027,31]
[349519186,1737272779430,-1040.65,0.00027,31]
[349519187,1737272779460,-1040.65,0.00027,31]
[349519188,1737272779490,-1040.65,0.00027,31]
[349519189,1737272779517,-1000.0,0.00027123,30]
[349519190,1737272779542,-158.64341893,0.000272,44]
[349519191,1737272779568,-214.43548434,0.0002736,120]
[349519192,1737272779597,-1000.0,0.00027397,30]
[349519193,1737272779623,-150.0,0.00027397,30]
[349519194,1737272779652,-201.60346574,0.00027397,60]
[349519195,1737272792080,-1000.0,0.00023078,30]
[349519196,1737272792106,-222.0,0.00023078,120]
[349519197,1737272792131,-155.07438167,0.00023078,120]
[349519198,1737272792157,-658.24286735,0.00023078,120]
[349519199,1737272792180,-3450.0,0.00023078,30]
[349519200,1737272792205,-2775.28439587,0.00023078,120]
[349519201,1737272792229,-1221.71682185,0.00023078,120]
[349519202,1737272803129,-341.86,0.00010137,2]
[349519203,1737272803150,-281.44,0.00010483,2]
[349519204,1737272803171,-186.05,0.00010524,2]
[349519205,1737272803192,-440.41461933,0.00011029,2]
[349519206,1737272883970,205.02776581,0.00022,120]
[349519415,1737272923878,-150.0,0.00022962,120]
[349519416,1737272923980,-159.13,0.0002469,120]
[349519417,1737272924037,-150.0,0.00027175,120]
[349519418,1737272924069,-500.0,0.00027643,120]
[349519419,1737272924095,-1741.16,0.00027671,120]
[349519420,1737272924121,-1741.16,0.00027671,120]
[349519421,1737272924147,-1741.16,0.00027671,120]
[349519422,1737272924173,-1741.16,0.00027671,120]
[349519423,1737272924198,-1741.16,0.00027671,120]
[349519424,1737272924223,-1741.16,0.00027671,120]
[349519425,1737272924253,-1741.16,0.00027671,120]
[349519426,1737272924278,-1741.16,0.00027671,120]
[349519427,1737272924302,-1741.16,0.00027671,120]
[349519428,1737272924327,-1741.16,0.00027671,120]
[349519429,1737272924354,-1741.16,0.00027671,120]
[349519430,1737272924379,-1741.16,0.00027671,120]
[349519431,1737272924404,-1741.16,0.00027671,120]
[349519432,1737272924429,-1741.16,0.00027671,120]
[349519433,1737272924455,-1741.16,0.00027671,120]
[349519434,1737272924481,-1741.16,0.00027671,120]
[349519435,1737272924508,-1741.16,0.00027671,120]
[349519436,1737272924533,-1741.16,0.00027671,120]
[349519437,1737272924557,-1741.16,0.00027671,120]
[349519438,1737272924583,-1741.16,0.00027671,120]
[349519439,1737272924609,-1741.16,0.00027671,120]
[349519440,1737272924649,-1741.16,0.00027671,120]
[349519441,1737272924687,-1741.16,0.00027671,120]
[349519442,1737272924726,-1741.32807297,0.00027671,120]
[349519443,1737272924766,-2000.0,0.00028,120]
[349519444,1737272924805,-500.0,0.00028675,120]
[349519445,1737272924973,-2009.0,0.00029292,120]
[349519446,1737272925014,-500.0,0.00029708,120]
[349519447,1737272925054,-157.409,0.0002989,120]
[349519448,1737272925093,-1000.0,0.0003,120]
[349519449,1737272925133,-200.0,0.0003,120]
[349519450,1737272925170,-1046.95268933,0.0003,120]
[349519451,1737272925208,-5114.38050029,0.0003,120]
[349519452,1737272925247,-2000.0,0.0003,120]
[349519453,1737272925288,-1758.41775261,0.0003,120]
[349519454,1737272925327,-182.0,0.0003,120]
[349519455,1737272925366,-151.0,0.0003,120]
[349519456,1737272925403,-151.0,0.0003,120]
[349519457,1737272925445,-500.0,0.00030741,120]
[349519458,1737272925484,-160.0,0.00031,120]
[349519459,1737272925527,-5000.0,0.00031,120]
[349519460,1737272925565,-157.415,0.0003109,120]
[349519461,1737272925604,-151.0,0.00031616,120]
[349519462,1737272925644,-500.0,0.00031774,120]
[349519463,1737272925682,-151.0,0.00031945,120]
[349519464,1737272925724,-160.5,0.00032,120]
[349519465,1737272925762,-157.339,0.0003229,120]
[349519466,1737272925804,-9218.737,0.000325,120]
[349519467,1737272925843,-9218.736,0.000325,120]
[349519468,1737272925878,-9218.737,0.000325,120]
[349519469,1737272925916,-9218.737,0.000325,120]
[349519470,1737272925954,-9218.736,0.000325,120]
[349519471,1737272925992,-500.0,0.00032807,120]
[349519472,1737272926032,-2000.0,0.00032876,120]
[349519473,1737272926070,-150.0,0.00032877,120]
[349519474,1737272926109,-151.0,0.00033233,120]
[349519475,1737272926147,-175.0,0.000333,120]
[349519476,1737272926184,-2000.0,0.00033424,120]
[349519477,1737272926223,-157.379,0.0003349,120]
[349519478,1737272926259,-500.0,0.00033839,120]
[349519479,1737272926296,-151.0,0.0003389,120]
[349519480,1737272926333,-2000.0,0.00033972,120]
[349519481,1737272926369,-915.2768902,0.00034,120]
[349519482,1737272926409,-160.0,0.00034,120]
[349519483,1737272926449,-150.0,0.000345,120]
[349519484,1737272926488,-2000.0,0.0003452,120]
[349519485,1737272926527,-157.33,0.0003469,120]
[349519486,1737272926565,-300.0,0.000347,120]
[349519487,1737272926603,-151.0,0.00034849,120]
[349519488,1737272926642,-500.0,0.00034872,120]
[349519489,1737272926679,-3150.69206342,0.00035,120]
[349519490,1737272926719,-2500.0,0.00035,120]
[349519491,1737272926756,-10000.0,0.00035,120]
[349519492,1737272926894,-2000.0,0.00035068,120]
[349519493,1737272926934,-1384.31154752,0.00035616,120]
[349519494,1737272926974,-151.0,0.00035836,120]
[349519495,1737272927013,-150.0,0.000359,120]
[349519496,1737272927053,-500.0,0.00035905,120]
[349519497,1737272927089,-300.0,0.00036,120]
[349519498,1737272927127,-151.0,0.00036466,120]
[349519499,1737272927165,-150.0,0.000366,120]
[349519500,1737272927202,-1063.54080792,0.00036666,120]
[349519501,1737272927240,-500.0,0.00036938,120]
[349519502,1737272927278,-180.96231,0.000373,120]
[349519503,1737272927316,-157.371,0.0003769,120]
[349519504,1737272927353,-151.0,0.00037781,120]
[349519505,1737272927389,-500.0,0.00037971,120]
[349519506,1737272927426,-2004.43,0.00038,120]
[349519507,1737272927463,-1174.0,0.00038,120]
[349519508,1737272927500,-200.0,0.00038,120]
[349519509,1737272927537,-650.0,0.00038,120]
[349519510,1737272927572,-2000.0,0.00038,120]
[349519511,1737272927609,-2775.28439587,0.00038,120]
[349519512,1737272927646,-1221.71682185,0.00038,120]
[349519513,1737272927681,-151.0,0.00038082,120]
[349519514,1737272927719,-27000.0,0.000381,120]
[349519515,1737272927757,-240.88467748,0.00038141,120]
[349519516,1737272927796,-181.75530558,0.00038325,120]
[349519517,1737272927850,-523.19,0.00038356,120]
[349519518,1737272940341,616.41396905,0.00038,120]
[349519530,1737273005069,462.29,8.537e-05,2]
[349519532,1737273032256,-250.0,0.00010475,2]
[349519533,1737273032266,-462.29,0.00010801,2]
[349519534,1737273032276,-340.57538067,0.00011029,2]
[349519535,1737273032285,-269.35491512,0.00011032,2]
[349519536,1737273032297,-511.63508488,0.00011032,2]
[349519537,1737273032306,-559.06491512,0.00011035,2]
[349519538,1737273032323,-221.92508488,0.00011035,2]
[349519539,1737273032332,-780.99,0.00011038,2]
[349519540,1737273032343,-360.7866841,0.00011041,2]
[349519541,1737273032354,-420.2033159,0.00011041,2]
[349519542,1737273032363,-579.7966841,0.00011044,2]
[349519543,1737273032395,-201.1933159,0.00011044,2]
[349519544,1737273032405,-780.99,0.00011047,2]
[349519545,1737273032414,-780.99,0.00011049,2]
[349519546,1737273032423,-780.99,0.00011052,2]
[349519547,1737273032431,-236.62724123,0.00011053,2]
[349519548,1737273032442,-63.37275877,0.00011053,2]
[349519549,1737273032451,-150.0,0.00011054,2]
[349519550,1737273032460,-150.99,0.00011054,2]
[349519551,1737273032470,-926.75,0.00011054,2]
[349519552,1737273032479,-1703.57925061,0.00011054,2]
[349519553,1737273032595,-4082.30074939,0.00011054,2]
[349519554,1737273032604,-9999.99,0.00011054,2]
[349519555,1737273032614,-5210.24,0.00011054,2]
[349519556,1737273032622,-780.99,0.00011055,2]
[349519557,1737273032631,-150.99,0.00011055,2]
[349519558,1737273032641,-999.99,0.00011055,2]
[349519559,1737273032650,-3481.83,0.00011055,2]
[349519560,1737273032660,-299.99,0.00011055,2]
[349519561,1737273032670,-9999.99,0.00011055,2]
[349519562,1737273032679,-9999.99,0.00011055,2]
[349519563,1737273032689,-10157.67943199,0.00011055,2]
[349519573,1737273033120,-10441.7850705,0.00011055,2]
[349519574,1737273033132,-6376.36359168,0.00011055,2]
[349519575,1737273033144,-5931.39190583,0.00011055,2]
[349519576,1737273033153,-328.28,0.00011055,2]
[349519577,1737273033162,-780.99,0.00011058,2]
[349519578,1737273033172,-780.99,0.00011061,2]
[349519579,1737273033182,-780.99,0.00011064,2]
[349519580,1737273033191,-780.99,0.00011067,2]
[349519581,1737273033200,-780.99,0.0001107,2]
[349519582,1737273033209,-780.99,0.00011073,2]
[349519583,1737273033218,-780.99,0.00011076,2]
[349519584,1737273033228,-780.99,0.00011079,2]
[349519585,1737273033237,-780.99,0.00011081,2]
[349519586,1737273033246,-76.12406645,0.00011084,2]
[349519587,1737273033261,-704.86593355,0.00011084,2]
[349519588,1737273033271,-1221.29575231,0.00011181,2]
[349519589,1737273033280,-710.96063974,0.000114,2]
[349519590,1737273033292,-3020.29349601,0.000114,2]
[349519591,1737273033334,-146.23326425,0.000114,2]
[349519592,1737273033344,-125.76673575,0.000114,2]
[349519593,1737273038222,-420.00320513,0.000114,2]
[349519594,1737273038284,-454.23005912,0.000114,2]
[349519595,1737273038299,-297.96,0.000114,2]
[349519596,1737273038314,-389.92718131,0.000114,2]
[349519597,1737273038440,-579.40281869,0.000114,2]
[349519598,1737273038455,-297.96,0.000115,2]
[349519599,1737273038471,-717.88,0.000115,2]
[349519600,1737273038486,-150.0,0.000115,2]
[349519601,1737273038502,-2751.0,0.00011507,2]
[349519602,1737273038517,-2338.21967364,0.00011527,2]
[349519780,1737273040316,-4030.78032636,0.00011527,2]
[349519781,1737273040326,-297.96,0.00011578,2]
[349519782,1737273040335,-200.0,0.000116,4]
[349519783,1737273040346,-297.96,0.000116,2]
[349519784,1737273040355,-297.96,0.000116,2]
[349519785,1737273040364,-297.96,0.000116,2]
[349519787,1737273040374,-297.96,0.000116,2]
[349519789,1737273040383,-297.96,0.000116,2]
[349519791,1737273040392,-297.96,0.000116,2]
[349519793,1737273040401,-278.32271132,0.00011699,2]
[349519795,1737273040413,-705.46728868,0.00011699,2]
[349519797,1737273040422,-300.0,0.00011699,2]
[349519800,1737273040432,-150.0,0.00011699,2]
[349519802,1737273040441,-2386.69526753,0.000117,2]
[349519804,1737273040452,-507.51076459,0.000117,2]
[349519806,1737273040463,-975.89616788,0.000117,2]
[349519808,1737273040471,-297.96,0.000117,2]
[349519810,1737273040480,-489.45981676,0.000117,4]
[349519812,1737273040492,-10.54018324,0.000117,4]
[349519814,1737273040502,-430.3178249,0.00011732,2]
[349519816,1737273040511,-298.9764879,0.0001176,2]
[349519818,1737273040520,-546.87498708,0.000118,2]
[349519850,1737273040809,-15.72401292,0.000118,2]
[349519852,1737273040819,-1008.0,0.000118,2]
[349519854,1737273040828,-235.19609041,0.000118,4]
[349519856,1737273040840,-418.54789703,0.000118,4]
[349519913,1737273043604,-146.25601256,0.000118,4]
[349519914,1737273043614,-153.74398744,0.00011824,2]
[349519917,1737273043635,-297.96,0.000115,2]
[349519919,1737273043645,-144.21601256,0.00011824,2]
[349519921,1737273043654,-297.96,0.00011824,2]
[349519923,1737273043664,-297.96,0.00011824,2]
[349519925,1737273043673,-297.96,0.00011824,2]
[349519927,1737273043683,-297.96,0.00011824,2]
[349519929,1737273043692,-297.96,0.00011824,2]
[349519931,1737273043701,-297.96,0.00011824,2]
[349519933,1737273043711,-77.41710654,0.00011824,2]
[349519942,1737273043785,-138.86273545,0.00011824,2]
[349519945,1737273043812,-81.68015801,0.00011824,2]
[349519947,1737273043821,-297.96,0.00011824,2]
[349519950,1737273043831,-157.35984199,0.00011824,2]
[349519952,1737273043843,-140.60015801,0.00011824,2]
[349519954,1737273043852,-297.96,0.00011824,2]
[349519956,1737273043861,-297.96,0.00011824,2]
[349519958,1737273043871,-179.48046515,0.00011824,2]
[349519968,1737273043960,-118.47953485,0.00011824,2]
[349519970,1737273043970,-297.96,0.00011824,2]
[349519972,1737273043980,-1000.0,0.00011858,2]
[349519974,1737273043989,-511.11,0.00011865,2]
[349519976,1737273043999,-2293.57048205,0.0001188,2]
[349519978,1737273044014,-501.05350463,0.0001188,2]
[349519981,1737273044025,-45.58571332,0.0001188,2]
[349519983,1737273044035,-295.41980695,0.00011898,2]
[349519990,1737273044091,-21740.85996806,0.00011898,2]
[349519992,1737273044101,-500.0,0.00011899,2]
[349519994,1737273044110,-500.0,0.00011899,2]
[349519996,1737273044120,-500.0,0.00011899,2]
[349519998,1737273044130,-500.0,0.00011899,2]
[349520000,1737273044140,-234.93988783,0.00011899,2]
[349520002,1737273044150,-500.0,0.00011899,2]
[349520004,1737273044159,-500.0,0.00011899,2]
[349520006,1737273044169,-363.29141094,0.00011899,2]
[349520007,1737273044179,-262.34077016,0.000119,2]
[349520008,1737273044188,-18015.4189,0.000119,2]
[349520010,1737273044198,-835.1996,0.000119,2]
[349520012,1737273044207,-870.0,0.000119,3]
[349520014,1737273044217,-1000.0,0.000119,2]
[349520016,1737273044226,-1000.0,0.000119,2]
[349520018,1737273044236,-1000.0,0.000119,2]
[349520020,1737273044245,-1000.0,0.000119,2]
[349520022,1737273044255,-1000.0,0.000119,2]
[349520024,1737273044265,-1000.0,0.000119,3]
[349520025,1737273044274,-1000.0,0.000119,2]
[349520027,1737273044283,-1000.0,0.000119,2]
[349520028,1737273044293,-2878.5195,0.000119,2]
[349520029,1737273044302,-1003.0,0.000119,2]
[349520030,1737273044312,-1000.0,0.000119,2]
[349520031,1737273044321,-1000.0,0.000119,2]
[349520032,1737273044332,-1005.0,0.000119,2]
[349520033,1737273044343,-10865.0026,0.000119,2]
[349520034,1737273044354,-361.8901523,0.000119,2]
[349520035,1737273044366,-419.81652618,0.000119,2]
[349520036,1737273044376,-648.82945183,0.000119,4]
[349520037,1737273044387,-351.17054817,0.000119,4]
[349520038,1737273044397,-270.2544642,0.000119,2]
[349520039,1737273044407,-162.40908237,0.000119,2]
[349520040,1737273044420,-499.31199763,0.00011973,2]
[349520041,1737273044430,-500.0,0.00011973,2]
[349520042,1737273044440,-300.99732252,0.00011993,2]
[349520043,1737273044450,-500.0,0.00011998,2]
[349520044,1737273044459,-500.0,0.00011999,2]
[349520045,1737273044469,-260.64864427,0.00011999,2]
[349520046,1737273044479,-704.36944644,0.00012,2]
[349520047,1737273044500,-2599.444995,0.00012,2]
[349520048,1737273044516,-3851.88067642,0.00012,2]
[349520056,1737273046157,-848.20657512,0.00012,2]
[349520057,1737273046170,-1907.007425,0.00012,2]
[349520058,1737273046183,-565.608,0.00012,2]
[349520059,1737273046195,-8756.51716471,0.00012,2]
[349520060,1737273046225,-2351.63147196,0.00012,2]
[349520061,1737273046305,-411780.37468594,0.00012,2]
[349520062,1737273046314,-11632.94506281,0.00012,2]
[349520063,1737273046504,-274.061001,0.00012,2]
[349520064,1737273046517,-5184.35486186,0.00012,2]
[349520068,1737273185217,2500.0,0.00019178,120]
[349520069,1737273185468,2545.53437649,0.00019452,120]
[349520073,1737273518254,98.46,9e-05,2]
[349520080,1737274067010,183.6193865,0.00022,120]
[349520084,1737274160123,-51.54,9e-05,2]
[349520085,1737274160143,-444.53,9.125e-05,2]
[349520086,1737274160163,-255.38735203,9.125e-05,2]
[349520087,1737274160184,-158.88,0.00010137,2]
[349520088,1737274160204,-319.56264797,0.00010776,2]
[349520102,1737274235812,-255.38735201,9.631e-05,2]
[349520103,1737274235822,-255.38735201,0.00010037,2]
[349520104,1737274235832,-494.23491489,0.00010717,2]
[349520105,1737274236074,-357.680135,0.00010717,2]
[349520106,1737274236179,-879.55495011,0.00010717,2]
[349520107,1737274236189,-200.0,0.00010717,2]
[349520108,1737274236198,-146.99735203,0.00010776,2]
[349520109,1737274236207,-338.96370101,0.00010899,2]
[349520146,1737274238227,-539.34332047,0.00010899,2]
[349520147,1737274238765,-621.69297852,0.00010899,2]
[349520148,1737274238781,-250.0,0.00010967,2]
[349520149,1737274238796,-300.0,0.00010998,2]
[349520150,1737274238813,-558.33268813,0.00010999,2]
[349520151,1737274238832,-2122.60198209,0.00010999,2]
[349520152,1737274238875,-6119.87532978,0.00010999,2]
[349520153,1737274238890,-150.0,0.00010999,2]
[349520154,1737274238904,-8767.254891,0.00011,2]
[349520155,1737274238919,-6953.2,0.00011,2]
[349520157,1737274238934,-150.99,0.00011,2]
[349520159,1737274238947,-7567.06,0.00011,2]
[349520162,1737274238962,-999.99,0.00011,2]
[349520164,1737274238976,-150.99,0.00011,2]
[349520167,1737274238990,-299.99,0.00011,2]
[349520169,1737274239004,-368.23,0.0001101,2]
[349520172,1737274239018,-241.91,0.00011077,2]
[349520174,1737274239033,-1000.0,0.000111,2]
[349520177,1737274239047,-200.0,0.00011119,2]
[349520179,1737274239062,-664.78,0.0001119,2]
[349520182,1737274239076,-250.0,0.0001119,2]
[349520184,1737274239090,-438.23,0.00011241,2]
[349520187,1737274239106,-444.53,0.00011389,2]
[349520190,1737274239120,-2076.0,0.00011644,2]
[349520192,1737274239135,-430.3178249,0.00011706,2]
[349520195,1737274239149,-200.0,0.00011717,2]
[349520197,1737274239163,-2633.64626028,0.00011718,2]
[349520200,1737274239178,-1297.15545599,0.00011719,2]
[349520203,1737274239196,-3554.57254756,0.00011719,2]
[349520205,1737274239210,-3961.0878202,0.00011734,2]
[349520208,1737274239225,-2633.64626028,0.00011736,2]
[349520210,1737274239238,-3258.48749869,0.00011736,2]
[349520212,1737274239255,-19116.49211338,0.00011738,2]
[349520214,1737274239271,-200.0,0.00011743,2]
[349520231,1737274239425,-321.89480476,0.00011744,2]
[349520234,1737274239447,-200.0,0.00011744,2]
[349520236,1737274239456,-2633.64626028,0.00011747,2]
[349520238,1737274239465,-3258.48749869,0.00011748,2]
[349520240,1737274239474,-3961.0878202,0.00011748,2]
[349520242,1737274239483,-3258.48749869,0.0001175,2]
[349520244,1737274239496,-19116.49211338,0.00011751,2]
[349520246,1737274239505,-3258.48749869,0.00011756,2]
[349520248,1737274239515,-1211.52906273,0.00011756,2]
[349520250,1737274239524,-321.89480476,0.00011761,2]
[349520252,1737274239534,-3258.48749869,0.00011762,2]
[349520254,1737274239544,-4851.72800355,0.00011763,2]
[349520256,1737274239555,-1211.52906273,0.00011769,2]
[349520258,1737274239564,-19116.49211338,0.00011771,2]
[349520260,1737274239573,-3961.0878202,0.00011771,2]
[349520262,1737274239583,-200.0,0.00011773,2]
[349520264,1737274239592,-4851.72800355,0.00011775,2]
[349520266,1737274239601,-4851.72800355,0.00011777,2]
[349520268,1737274239612,-5999.41867857,0.00011779,2]
[349520269,1737274239624,-13117.07343481,0.00011779,2]
[349520270,1737274239634,-1211.52906273,0.00011783,2]
[349520271,1737274239643,-1211.52906273,0.00011785,2]
[349520272,1737274239652,-4851.72800355,0.00011785,2]
[349520273,1737274239663,-2633.64626028,0.00011785,2]
[349520274,1737274239672,-200.0,0.00011787,2]
[349520275,1737274239681,-2633.64626028,0.00011789,2]
[349520276,1737274239691,-321.89480476,0.00011789,2]
[349520277,1737274239700,-321.89480476,0.00011793,2]
[349520278,1737274239710,-3961.0878202,0.00011798,2]
[349520279,1737274239720,-1017.74646025,0.000118,2]
[349520281,1737274239730,-19116.49211338,0.00011803,2]
[349520283,1737274239739,-321.89480476,0.00011804,2]
[349520285,1737274239749,-3961.0878202,0.00011809,2]
[349520287,1737274239758,-587.58078727,0.0001181,2]
[349520291,1737274239793,-623.94827546,0.0001181,2]
[349520293,1737274239804,-468.58444259,0.00011854,2]
[349520298,1737274239839,-166.41555741,0.00011854,2]
[349520300,1737274239849,-331.79343359,0.00011854,2]
[349520303,1737274239863,-2666.37856641,0.00011854,2]
[349520305,1737274239872,-3000.0,0.0001188,2]
[349520307,1737274239881,-209.87261616,0.000119,2]
[349520309,1737274239892,-9961.927577,0.000119,2]
[349520360,1737274240337,-709.2757705,0.00011279,2]
[349520372,1737274240443,-11915.04735266,0.00011279,2]
[349520389,1737274240602,-1898.39,0.00011279,2]
[349520402,1737274240707,-487.46,0.00011279,2]
[349520404,1737274240719,-643.88842845,0.00011279,2]
[349520410,1737274240766,-271.99,0.00011279,2]
[349520412,1737274240777,-871.84979789,0.00011279,2]
[349520424,1737274243336,-543.28142059,0.00011279,2]
[349520425,1737274243390,-1311.6373174,0.00011279,2]
[349520426,1737274243402,-975.93,0.00011279,2]
[349520427,1737274243415,-605.29373413,0.00011279,2]
[349520428,1737274243523,-4878.44354367,0.00011279,2]
[349520429,1737274243555,-1070.44538361,0.000119,2]
[349520430,1737274243567,-500.0,0.000119,2]
[349520431,1737274243646,-317.92,0.000119,2]
[349520436,1737274243688,-900.10574579,0.000119,2]
[349520438,1737274243699,-572.99321151,0.000119,2]
[349520553,1737274246283,-28335.16038209,0.000119,2]
[349520554,1737274246293,-670.03429584,0.000119,2]
[349520555,1737274246303,-181.06075638,0.000119,2]
[349520556,1737274246312,-16591.196,0.000119,2]
[349520557,1737274246321,-2500.0,0.000119,2]
[349520558,1737274246330,-162.40908237,0.000119,2]
[349520559,1737274246339,-236.47265621,0.000119,2]
[349520560,1737274246349,-3341.01963212,0.000119,2]
[349520561,1737274246358,-5328.6593,0.000119,2]
[349520562,1737274246368,-1362.728,0.000119,2]
[349520563,1737274246377,-2000.0,0.00011903,2]
[349520564,1737274246387,-2000.0,0.00011904,2]
[349520565,1737274246396,-177.73460843,0.00011973,2]
[349520566,1737274246409,-160.00243856,0.00011973,2]
[349520567,1737274246419,-293.00888825,0.00011973,2]
[349520568,1737274246428,-160.00245146,0.00011973,2]
[349520569,1737274246437,-500.0,0.00011973,2]
[349520570,1737274246446,-160.5730571,0.00011973,2]
[349520571,1737274246457,-450.079,0.00011992,2]
[349520572,1737274246467,-500.0,0.00011999,2]
[349520573,1737274246476,-318.1434901,0.00011999,2]
[349520574,1737274246487,-98302.18196111,0.00012,2]
[349520575,1737274246502,-330.49842,0.00012,2]
[349520576,1737274246514,-1798.87388113,0.00012,2]
[349520577,1737274246526,-3994.30769091,0.00012,2]
[349520578,1737274246586,-1368.9,0.00012,2]
[349520579,1737274246612,-821.96564999,0.00012,2]
[349520699,1737274843583,-458.81,8.889e-05,2]
[349520700,1737274855693,-200.0,0.000117,4]
[349520701,1737274855717,-500.0,0.000118,4]
[349520702,1737274855740,-800.0,0.000119,4]
[349520703,1737274855762,-1001.21,0.00012,3]
[349520704,1737274879920,-162.82,0.00010137,2]
[349520705,1737274879944,-297.93,0.0001077,2]
[349520706,1737274879967,-328.39,0.00010844,2]
[349520707,1737274879990,-669.21,0.00010907,2]
[349520708,1737274880022,-162.1532435,0.00010928,2]
[349520709,1737274880067,-1000.0,0.00011019,2]
[349520710,1737274880108,-234.54,0.00011028,2]
[349520711,1737274880156,-250.0,0.000111,2]
[349520712,1737274880199,-534.14,0.00011132,2]
[349520713,1737274880240,-458.81,0.00011153,2]
[349520714,1737274880279,-885.23,0.00011189,2]
[349520715,1737274880317,-170.41,0.00011189,2]
[349520716,1737274880354,-300.0,0.0001125,2]
[349520717,1737274880391,-23900.0,0.00011251,2]
[349520718,1737274880427,-963.41,0.00011279,2]
[349520719,1737274880464,-871.84979789,0.00011279,2]
[349520720,1737274880501,-6422.0,0.00011412,2]
[349520721,1737274880537,-150.99,0.00011412,2]
[349520722,1737274880577,-292.24,0.00011412,2]
[349520723,1737274880615,-150.0,0.00011572,2]
[349520724,1737274880655,-430.3178249,0.00011573,2]
[349520725,1737274880693,-162.1532435,0.000117,2]
[349520726,1737274880731,-1266.70359025,0.000117,2]
[349520727,1737274880771,-17320.07750883,0.0001173,2]
[349520728,1737274880811,-17320.07750883,0.00011748,2]